[Event "41st Jacques-Lemans-Open 2022"]
[Site "St. Veit/Glan"]
[Date "2022.07.09"]
[Round "1.36"]
[White "Leitner, Gerald"]
[Black "Gockner, Martin"]
[Result "0-1"]
[ECO "A05"]
[WhiteElo "2145"]
[BlackElo "1879"]
[Annotator "RC"]
[PlyCount "78"]
[EventDate "2022.07.09"]
[EventType "swiss"]
[EventCountry "AUT"]
[SourceTitle "playchess.com"]
[Source "ChessBase"]
[SourceQuality "1"]
[TimeControl "40/5400+30:1800+30"]

1. Nf3 {[%emt 0:00:05]} Nf6 {[%emt 0:00:07]} 2. c4 {[%emt 0:00:02]} g6 {[%emt 0:00:13]} 3. Nc3 {[%emt 0:00:10]} Bg7 {[%emt 0:00:06]} 4. e4 {[%emt 0:00:38]} d6 {[%emt 0:00:06]} 5. d4 {[%emt 0:00:03]} O-O {[%emt 0:00:14]} 6. h3 {[%emt 0:00:04]} Nc6 {[%emt 0:03:27]} 7. Be3 {[%emt 0:00:59]} a6 {[%emt 0:02:40]} 8. Be2 {[%emt 0:04:10]} e5 {[%emt 0:00:41]} 9. d5 {[%emt 0:00:04]} Ne7 {[%emt 0:00:09]} 10. g4 {[%emt 0:00:22]} c6 {[%emt 0:03:27]} 11. Nd2 {[%emt 0:09:08]} cxd5 {[%emt 0:07:42]} 12. cxd5 {[%emt 0:01:24]} b5 {[%emt 0:04:29]} 13. a3 {[%emt 0:08:52]} Rb8 {[%emt 0:10:17]} 14. b4 {[%emt 0:02:44]} Nd7 {[%emt 0:09:10]} 15. Rc1 {[%emt 0:06:24]} Nb6 {[%emt 0:00:36]} 16. g5 {[%emt 0:13:59]} Bd7 {[%emt 0:11:07]} 17. h4 {[%emt 0:01:56]} f5 {[%emt 0:02:43]} 18. gxf6 {[%emt 0:00:13]} Rxf6 {[%emt 0:01:24]} 19. Bg4 {[%emt 0:11:52]} Rc8 {[%emt 0:10:28]} 20. Bxd7 {[%emt 0:01:26]} Nxd7 {[%emt 0:00:07]} 21. Ne2 {[%emt 0:15:25]} Rf7 {[%emt 0:13:36]} 22. Rxc8 {[%emt 0:10:38]} Qxc8 {[%emt 0:00:14]} 23. Qc1 {[%emt 0:00:01]} Qb7 {[%emt 0:01:04]} 24. Nb3 {[%emt 0:00:29]} Nf6 {[%emt 0:06:05]} 25. Na5 {[%emt 0:00:14]} Qd7 {[%emt 0:01:55]} 26. f3 {[%emt 0:03:01]} Rf8 {[%emt 0:00:12]} 27. Kd2 {[%emt 0:01:08]} Rc8 {[%emt 0:00:19]} 28. Qb1 {[%emt 0:00:32]} Nexd5 {[%emt 0:02:56]} 29. exd5 {[%emt 0:00:25]} Nxd5 {[%emt 0:00:21]} 30. Qb3 {[%emt 0:01:08]} Qf7 {[%emt 0:00:06]} 31. Rc1 {[%emt 0:06:47]} Rxc1 {[%emt 0:00:23]} 32. Nxc1 {[%emt 0:00:12]} Qxf3 {[%emt 0:00:20]} 33. Bg5 {[%emt 0:01:02]} Qg2+ {[%emt 0:00:48]} 34. Ne2 {[%emt 0:00:39]} h6 {[%emt 0:00:49]} 35. Be7 {[%emt 0:00:14]} h5 {[%emt 0:01:22]} 36. Bg5 {[%emt 0:00:36]} Kh7 {[%emt 0:00:12]} 37. Qd3 {[%emt 0:00:56]} e4 {[%emt 0:00:20]} 38. Qg3 {[%emt 0:00:21]} Bc3+ {[%emt 0:00:48]} 39. Kd1 {[%emt 0:00:26]} Qf1+ {[%emt 0:00:20]} 0-1

[Event "41st Jacques-Lemans-Open 2022"]
[Site "St. Veit/Glan"]
[Date "2022.07.10"]
[Round "2.1"]
[White "Bosiocic, Marin"]
[Black "Kienboeck, Benjamin"]
[Result "1-0"]
[ECO "A06"]
[WhiteElo "2549"]
[BlackElo "2151"]
[Annotator "TA"]
[PlyCount "87"]
[EventDate "2022.07.09"]
[EventType "swiss"]
[EventCountry "AUT"]
[SourceTitle "playchess.com"]
[Source "ChessBase"]
[SourceQuality "1"]
[TimeControl "40/5400+30:1800+30"]

{[%evp 11,87,-2,0,0,0,0,0,0,0,2,11,0,11,0,0,0,0,0,-5,0,-7,0,25,0,17,-14,39,29,39,41,56,28,50,35,56,11,14,14,20,-41,-21,-39,-37,-39,-34,-56,-49,-92,-97,-126,0,-2,0,-6,114,89,203,193,195,202,202,156,254,195,210,162,595,587,650,608,600,578,1700,1581,1891,1763,1186,1065]} 1. Nf3 {[%emt 0:00:04]} d5 {[%emt 0:00:11]} 2. g3 {[%emt 0:00:08]} g6 {[%emt 0:00:18]} 3. Bg2 {[%emt 0:00:17]} Bg7 {[%emt 0:00:09]} 4. O-O {[%emt 0:00:10]} e5 {[%emt 0:00:23]} 5. d3 {[%emt 0:00:09]} Ne7 {[%emt 0:00:39]} 6. e4 {[%emt 0:00:08]} O-O {[%emt 0:02:55]} 7. b4 {[%emt 0:00:28] A07: Réti Opening: New York and Capablanca Systems.} Nbc6 {[%emt 0:11:47]} 8. c3 {[%emt 0:00:20]} a6 {[%emt 0:03:02]} 9. Qc2 {[%emt 0:03:03] The position is equal.} Bg4 {[%emt 0:05:09]} 10. Nbd2 {[%emt 0:04:16]} Qd7 {[%emt 0:03:14]} 11. Re1 {[%emt 0:00:22]} Rad8 {[%emt 0:00:51]} 12. Bb2 {[%emt 0:02:52] [#]} dxe4 $146 {[%emt 0:05:13]} ({Predecessor:} 12... f5 13. exd5 Nxd5 14. a3 Nb6 15. Ng5 Qxd3 16. Qb3+ Kh8 17. Bc1 e4 18. Ra2 Ne5 {0-1 (24) Saber,Y (2173)-Cruz,J (2424) Barcelona 2017}) 13. dxe4 {[%emt 0:03:40]} Qd3 {[%emt 0:00:40]} 14. Qxd3 {[%emt 0:02:01]} Rxd3 {[%emt 0:00:08]} 15. h3 {[%emt 0:01:04]} Bxf3 {[%emt 0:04:53]} 16. Nxf3 {[%emt 0:01:02][%cal Bd2f3,Bf3h2,Bh2g4,Bg4e3][%mdl 32]} Rfd8 {[%emt 0:00:24]} 17. Nh2 {[%emt 0:01:51]} Nc8 {[%emt 0:11:39]} (17... Rd2 $5 {[%cal Rd2b2]} 18. Reb1 f5 $11) 18. Ng4 {[%emt 0:05:43]} Nb6 {[%emt 0:02:23]} ({Black should play} 18... Rd2 $1 $11 19. Bc1 Rc2) 19. Bf1 $1 $14 {[%emt 0:06:16]} R3d7 {[%emt 0:04:49]} 20. a4 {[%emt 0:02:59]} h5 {[%emt 0:10:23]} 21. Ne3 {[%emt 0:00:19]} Bh6 {[%emt 0:00:32]} 22. Bc1 {[%emt 0:04:29]} a5 {[%emt 0:04:45]} 23. Nd5 {[%emt 0:06:27]} (23. b5 $5 {[%cal Rb5c6]} Ne7 24. c4 $16) 23... Kg7 {[%emt 0:15:14]} 24. Nxb6 {[%emt 0:01:00]} cxb6 {[%emt 0:00:22]} 25. b5 {[%emt 0:00:55]} (25. Bxh6+ $11 Kxh6 26. bxa5) 25... Nb8 $15 {[%emt 0:01:59]} 26. f4 {[%emt 0:00:44]} Rc7 {[%emt 0:00:56]} 27. c4 {[%emt 0:00:59]} (27. fxe5 Bxc1 28. Raxc1 Re8 $17) 27... Kh7 {[%emt 0:02:40][%cal Oh5h4]} 28. c5 {[%emt 0:06:57]} bxc5 {[%emt 0:01:41]} 29. b6 {[%emt 0:00:31]} Rc6 {[%emt 0:02:03]} 30. Rb1 {[%emt 0:00:10]} Rd4 {[%emt 0:01:31] Prevents Bc4.} (30... c4 $17 {Threatens to win with ...exf4.} 31. Rb5 exf4 32. gxf4 c3 33. Rxa5 Rxb6) 31. Be3 {[%emt 0:01:54]} Rb4 {[%emt 0:01:57]} ({Much weaker is} 31... Rxa4 32. Bb5 Ra3 33. Bxc6 Nxc6 34. Kg2 $17) 32. Bb5 $36 {[%emt 0:00:13][%mdl 2048] White fights for an advantage.} exf4 {[%emt 0:01:48]} (32... Rc8 $11 {keeps the balance.}) 33. Bxc6 {[%emt 0:01:48][%cal Oe3c5] White is more active.} (33. Rxb4 {keeps more tension.} cxb4 34. Bxc6 fxe3 35. Bb5) 33... Nxc6 {[%emt 0:01:01]} (33... fxe3 $16 34. Rxb4 (34. Bxb7 Nd7 $11) 34... cxb4) 34. Rxb4 $18 {[%emt 0:00:20]} axb4 {[%emt 0:00:30]} 35. Bxc5 {[%emt 0:00:41]} fxg3 $11 {[%emt 0:00:31][%mdl 4096] Endgame KRB-KBN} 36. Rd1 {[%emt 0:05:00]} b3 {[%emt 0:00:10]} (36... Bf4 $16) 37. Rb1 $18 {[%emt 0:00:21]} Na5 {[%emt 0:00:56]} 38. Kg2 {[%emt 0:00:57][%mdl 1024] Hoping for Bb4. White has strong compensation.} Bg7 $2 {[%emt 0:00:51]} (38... Bd2 {is a better chance.}) 39. Bb4 {[%emt 0:00:32][%mdl 64] [#] Deflection. White is clearly winning.} Nc4 {[%emt 0:00:14]} 40. a5 {[%emt 0:02:09][%cal Ba4a5,Ba5a6,Ba6b7][%mdl 32]} b2 {[%emt 0:00:41]} 41. a6 {[%emt 0:31:07]} Nxb6 {[%emt 0:09:07]} 42. axb7 {[%emt 0:00:00]} Be5 {[%emt 0:00:56] [#]} 43. Rxb2 $3 {[%emt 0:00:00][%mdl 512]} Nc4 {[%emt 0:00:14]} (43... Bb8 44. Rd2) 44. Rb3 {[%emt 0:00:00] Weighted Error Value: White=0.16 (very precise) /Black=0.41} 1-0

[Event "41st Jacques-Lemans-Open 2022"]
[Site "St. Veit/Glan"]
[Date "2022.07.10"]
[Round "2.2"]
[White "Wiedner, Robert"]
[Black "Rogic, Davor"]
[Result "0-1"]
[ECO "D45"]
[WhiteElo "2133"]
[BlackElo "2474"]
[Annotator "RC"]
[PlyCount "64"]
[EventDate "2022.07.09"]
[EventType "swiss"]
[EventCountry "AUT"]
[SourceTitle "playchess.com"]
[Source "ChessBase"]
[SourceQuality "1"]
[TimeControl "40/5400+30:1800+30"]

1. d4 {[%emt 0:00:08]} Nf6 {[%emt 0:00:41]} 2. c4 {[%emt 0:00:39]} e6 {[%emt 0:00:37]} 3. Nf3 {[%emt 0:00:52]} d5 {[%emt 0:00:58]} 4. Nc3 {[%emt 0:00:17]} c6 {[%emt 0:00:39]} 5. e3 {[%emt 0:02:56]} Nbd7 {[%emt 0:00:21]} 6. a3 {[%emt 0:00:14]} Bd6 {[%emt 0:02:09]} 7. b4 {[%emt 0:02:14]} dxc4 {[%emt 0:05:52]} 8. Bxc4 {[%emt 0:00:09]} O-O {[%emt 0:00:57]} 9. Bb2 {[%emt 0:04:09]} Qe7 {[%emt 0:01:57]} 10. Qc2 {[%emt 0:04:03]} h6 {[%emt 0:06:51]} 11. Nd2 {[%emt 0:11:19]} b6 {[%emt 0:06:32]} 12. e4 {[%emt 0:01:51]} e5 {[%emt 0:01:45]} 13. d5 {[%emt 0:00:11]} Bb7 {[%emt 0:02:19]} 14. dxc6 {[%emt 0:00:48]} Bxc6 {[%emt 0:00:06]} 15. Nb5 {[%emt 0:00:26]} Bxb5 {[%emt 0:23:53]} 16. Bxb5 {[%emt 0:00:08]} Rfc8 {[%emt 0:00:20]} 17. Qb3 {[%emt 0:02:15]} a5 {[%emt 0:00:32]} 18. bxa5 {[%emt 0:04:36]} Nc5 {[%emt 0:05:06]} 19. Qf3 {[%emt 0:00:44]} bxa5 {[%emt 0:03:50]} 20. a4 {[%emt 0:01:31]} Rab8 {[%emt 0:03:33]} 21. O-O {[%emt 0:01:15]} Nxa4 {[%emt 0:01:39]} 22. Ba6 {[%emt 0:05:17]} Rc6 {[%emt 0:06:15]} 23. Rxa4 {[%emt 0:00:39]} Rxb2 {[%emt 0:00:49]} 24. Nc4 {[%emt 0:00:15]} Rb4 {[%emt 0:00:51]} 25. Nxd6 {[%emt 0:04:27]} Qxd6 {[%emt 0:01:31]} 26. Rxb4 {[%emt 0:01:03]} Qxb4 {[%emt 0:01:23]} 27. Bd3 {[%emt 0:03:23]} a4 {[%emt 0:00:57]} 28. h3 {[%emt 0:00:24]} Qb2 {[%emt 0:01:53]} 29. Qe2 {[%emt 0:02:42]} a3 {[%emt 0:01:09]} 30. Qxb2 {[%emt 0:00:29]} axb2 {[%emt 0:00:04]} 31. f3 {[%emt 0:00:11]} Rc1 {[%emt 0:02:14]} 32. Kf2 {[%emt 0:00:08]} Nd7 {[%emt 0:03:39]} 0-1

[Event "41st Jacques-Lemans-Open 2022"]
[Site "St. Veit/Glan"]
[Date "2022.07.10"]
[Round "2.3"]
[White "Bauer, Sebastian"]
[Black "Schwab, Rene"]
[Result "0-1"]
[ECO "B12"]
[WhiteElo "2380"]
[BlackElo "2124"]
[Annotator "RC"]
[PlyCount "68"]
[EventDate "2022.07.09"]
[EventType "swiss"]
[EventCountry "AUT"]
[SourceTitle "playchess.com"]
[Source "ChessBase"]
[SourceQuality "1"]
[TimeControl "40/5400+30:1800+30"]

1. e4 {[%emt 0:00:03]} c6 {[%emt 0:00:07]} 2. d4 {[%emt 0:00:07]} d5 {[%emt 0:00:03]} 3. e5 {[%emt 0:00:08]} a5 {[%emt 0:00:10]} 4. a4 {[%emt 0:04:10]} Na6 {[%emt 0:00:21]} 5. Nf3 {[%emt 0:01:52]} Bg4 {[%emt 0:00:08]} 6. Nbd2 {[%emt 0:00:44]} Nc7 {[%emt 0:01:15]} 7. Be2 {[%emt 0:00:57]} g6 {[%emt 0:00:08]} 8. O-O {[%emt 0:01:04]} Bh6 {[%emt 0:01:38]} 9. c4 {[%emt 0:07:50]} Bxd2 {[%emt 0:02:55]} 10. Qxd2 {[%emt 0:04:56]} dxc4 {[%emt 0:01:09]} 11. Ra3 {[%emt 0:30:16]} Be6 {[%emt 0:04:49]} 12. Ng5 {[%emt 0:03:04]} Bd5 {[%emt 0:03:15]} 13. Qc2 {[%emt 0:02:56]} b5 {[%emt 0:01:31]} 14. f4 {[%emt 0:00:25]} Nh6 {[%emt 0:30:42]} 15. g4 {[%emt 0:04:16]} Ne6 {[%emt 0:09:55]} 16. Rh3 {[%emt 0:09:23]} Nxd4 {[%emt 0:00:56]} 17. Qd1 {[%emt 0:00:14]} Nxe2+ {[%emt 0:04:14]} 18. Qxe2 {[%emt 0:00:02]} c3 {[%emt 0:06:11]} 19. Rd1 {[%emt 0:04:45]} bxa4 {[%emt 0:02:20]} 20. bxc3 {[%emt 0:02:48]} Qb6+ {[%emt 0:03:49]} 21. Be3 {[%emt 0:01:05]} Qb3 {[%emt 0:02:24]} 22. Rxh6 {[%emt 0:01:54]} O-O-O {[%emt 0:01:54]} 23. Rxh7 {[%emt 0:06:58]} Rxh7 {[%emt 0:01:46]} 24. Nxh7 {[%emt 0:00:01]} a3 {[%emt 0:03:54]} 25. Qa6+ {[%emt 0:04:59]} Kd7 {[%emt 0:00:33]} 26. Qa7+ {[%emt 0:05:25]} Ke8 {[%emt 0:00:21]} 27. Qd4 {[%emt 0:00:18]} Qb2 {[%emt 0:00:52]} 28. Bf2 {[%emt 0:01:29]} Qe2 {[%emt 0:01:21]} 29. Ng5 {[%emt 0:02:06]} Qxg4+ {[%emt 0:02:04]} 30. Bg3 {[%emt 0:00:01]} Qe2 {[%emt 0:00:42]} 31. Rd2 {[%emt 0:00:27]} Qxd2 {[%emt 0:01:02]} 32. Qxd2 {[%emt 0:00:03]} Bb3 {[%emt 0:02:24]} 33. Ne4 {[%emt 0:01:39]} Rxd2 {[%emt 0:02:05]} 34. Nxd2 {[%emt 0:00:01]} a4 {[%emt 0:00:20]} 0-1

[Event "41st Jacques-Lemans-Open 2022"]
[Site "St. Veit/Glan"]
[Date "2022.07.10"]
[Round "2.4"]
[White "Praznik, Niko"]
[Black "Zoernpfenning, Siegfried"]
[Result "1-0"]
[ECO "A30"]
[WhiteElo "2325"]
[BlackElo "2114"]
[Annotator "RC"]
[PlyCount "99"]
[EventDate "2022.07.09"]
[EventType "swiss"]
[EventCountry "AUT"]
[SourceTitle "playchess.com"]
[Source "ChessBase"]
[SourceQuality "1"]
[TimeControl "40/5400+30:1800+30"]

1. c4 {[%emt 0:06:25]} c5 {[%emt 0:01:23]} 2. g3 {[%emt 0:00:14]} Nc6 {[%emt 0:00:19]} 3. Bg2 {[%emt 0:00:08]} Nf6 {[%emt 0:00:12]} 4. Nc3 {[%emt 0:00:12]} g6 {[%emt 0:00:25]} 5. e4 {[%emt 0:00:47]} Bg7 {[%emt 0:01:27]} 6. Nge2 {[%emt 0:00:10]} d6 {[%emt 0:01:50]} 7. d3 {[%emt 0:00:20]} a6 {[%emt 0:05:14]} 8. a4 {[%emt 0:01:17]} Rb8 {[%emt 0:01:04]} 9. O-O {[%emt 0:00:59]} O-O {[%emt 0:00:12]} 10. h3 {[%emt 0:00:16]} Ne8 {[%emt 0:01:00]} 11. Be3 {[%emt 0:03:55]} Nc7 {[%emt 0:07:11]} 12. d4 {[%emt 0:02:32]} cxd4 {[%emt 0:01:33]} 13. Nxd4 {[%emt 0:00:09]} Ne6 {[%emt 0:05:58]} 14. Nde2 {[%emt 0:03:49]} Bd7 {[%emt 0:03:53]} 15. Rb1 {[%emt 0:06:41]} Na5 {[%emt 0:05:13]} 16. b3 {[%emt 0:06:52]} b5 {[%emt 0:00:49]} 17. cxb5 {[%emt 0:10:05]} axb5 {[%emt 0:00:34]} 18. b4 {[%emt 0:00:27]} Nc4 {[%emt 0:00:43]} 19. a5 {[%emt 0:00:16]} Nc7 {[%emt 0:09:47]} 20. Bg5 {[%emt 0:05:21]} h6 {[%emt 0:00:27]} 21. Bc1 {[%emt 0:00:32]} Kh7 {[%emt 0:05:03]} 22. Nd5 {[%emt 0:05:33]} Nxd5 {[%emt 0:04:08]} 23. exd5 {[%emt 0:00:06]} Qc8 {[%emt 0:00:53]} 24. g4 {[%emt 0:08:35]} f5 {[%emt 0:00:50]} 25. g5 {[%emt 0:02:42]} f4 {[%emt 0:05:43]} 26. Nxf4 {[%emt 0:00:59]} Bf5 {[%emt 0:00:34]} 27. Rb3 {[%emt 0:06:22]} Ne5 {[%emt 0:08:27]} 28. Rg3 {[%emt 0:06:52]} Qc4 {[%emt 0:02:04]} 29. gxh6 {[%emt 0:04:20]} Bxh6 {[%emt 0:09:24]} 30. Ne6 {[%emt 0:00:47]} Rg8 {[%emt 0:08:00]} 31. Bxh6 {[%emt 0:00:41]} Kxh6 {[%emt 0:00:06]} 32. Qd2+ {[%emt 0:06:38]} Kh7 {[%emt 0:00:17]} 33. Rc1 {[%emt 0:04:09]} Qh4 {[%emt 0:00:20]} 34. Qg5 {[%emt 0:03:10]} Qxg5 {[%emt 0:01:14]} 35. Nxg5+ {[%emt 0:00:06]} Kg7 {[%emt 0:01:10]} 36. Rc7 {[%emt 0:00:08]} Rge8 {[%emt 0:01:03]} 37. Nf3 {[%emt 0:01:05]} Rbc8 {[%emt 0:05:01]} 38. Rxc8 {[%emt 0:00:46]} Rxc8 {[%emt 0:00:13]} 39. Nxe5 {[%emt 0:00:23]} Rc1+ {[%emt 0:00:24]} 40. Kh2 {[%emt 0:00:08]} dxe5 {[%emt 0:00:08]} 41. Ra3 {[%emt 0:30:10]} Rc7 {[%emt 0:34:14]} 42. Bf1 {[%emt 0:02:09]} Be4 {[%emt 0:00:46]} 43. Bg2 {[%emt 0:02:37]} Bc2 {[%emt 0:00:50]} 44. a6 {[%emt 0:00:00]} Ra7 {[%emt 0:00:00]} 45. Rc3 {[%emt 0:00:00]} Bf5 {[%emt 0:00:00]} 46. Rc6 {[%emt 0:00:00]} Bd7 {[%emt 0:00:00]} 47. Rb6 {[%emt 0:00:00]} Bc8 {[%emt 0:00:00]} 48. d6 {[%emt 0:00:00]} Kf7 {[%emt 0:00:00]} 49. Bb7 {[%emt 0:00:00]} Bd7 {[%emt 0:00:00]} 50. dxe7 {[%emt 0:00:00]} 1-0

[Event "41st Jacques-Lemans-Open 2022"]
[Site "St. Veit/Glan"]
[Date "2022.07.10"]
[Round "2.5"]
[White "Hofstadler, Mario"]
[Black "Schernthaner, David"]
[Result "1/2-1/2"]
[ECO "D73"]
[WhiteElo "2123"]
[BlackElo "2319"]
[Annotator "RC"]
[PlyCount "35"]
[EventDate "2022.07.09"]
[EventType "swiss"]
[EventCountry "AUT"]
[SourceTitle "playchess.com"]
[Source "ChessBase"]
[SourceQuality "1"]
[TimeControl "40/5400+30:1800+30"]

1. d4 {[%emt 0:00:18]} Nf6 {[%emt 0:00:06]} 2. Nf3 {[%emt 0:01:07]} g6 {[%emt 0:00:18]} 3. c4 {[%emt 0:00:48]} Bg7 {[%emt 0:00:05]} 4. g3 {[%emt 0:00:13]} d5 {[%emt 0:00:49]} 5. Bg2 {[%emt 0:03:59]} dxc4 {[%emt 0:00:31]} 6. Na3 {[%emt 0:04:54]} c3 {[%emt 0:00:05]} 7. bxc3 {[%emt 0:00:54]} O-O {[%emt 0:00:12]} 8. O-O {[%emt 0:00:49]} c5 {[%emt 0:00:05]} 9. Nc4 {[%emt 0:11:23]} Nc6 {[%emt 0:00:42]} 10. Ba3 {[%emt 0:19:10]} Be6 {[%emt 0:13:28]} 11. Nce5 {[%emt 0:03:49]} Ne4 {[%emt 0:22:02]} 12. Nxc6 {[%emt 0:09:26]} bxc6 {[%emt 0:00:10]} 13. Qc2 {[%emt 0:05:47]} Qa5 {[%emt 0:12:12]} 14. Bb2 {[%emt 0:00:15]} Nd6 {[%emt 0:06:07]} 15. Nd2 {[%emt 0:05:16]} Rfc8 {[%emt 0:07:04]} 16. Nb3 {[%emt 0:09:33]} Bxb3 {[%emt 0:02:38]} 17. axb3 {[%emt 0:00:11]} Qb6 {[%emt 0:00:07]} 18. dxc5 {[%emt 0:03:24]} 1/2-1/2

[Event "41st Jacques-Lemans-Open 2022"]
[Site "St. Veit/Glan"]
[Date "2022.07.10"]
[Round "2.6"]
[White "Hresc, Vladimir"]
[Black "Wendl, Philipp"]
[Result "1-0"]
[ECO "D01"]
[WhiteElo "2308"]
[BlackElo "2097"]
[Annotator "RC"]
[PlyCount "73"]
[EventDate "2022.07.09"]
[EventType "swiss"]
[EventCountry "AUT"]
[SourceTitle "playchess.com"]
[Source "ChessBase"]
[SourceQuality "1"]
[TimeControl "40/5400+30:1800+30"]

1. Nc3 {[%emt 0:01:21]} d5 {[%emt 0:00:45]} 2. d4 {[%emt 0:00:30]} Nf6 {[%emt 0:03:23]} 3. Bg5 {[%emt 0:01:07]} c5 {[%emt 0:03:31]} 4. e3 {[%emt 0:01:59]} e6 {[%emt 0:03:16]} 5. Nf3 {[%emt 0:04:34]} Nc6 {[%emt 0:00:31]} 6. a3 {[%emt 0:03:33]} cxd4 {[%emt 0:05:15]} 7. exd4 {[%emt 0:01:27]} Be7 {[%emt 0:03:52]} 8. Bd3 {[%emt 0:04:56]} a6 {[%emt 0:05:05]} 9. O-O {[%emt 0:03:22]} h6 {[%emt 0:05:37]} 10. Be3 {[%emt 0:02:38]} Qc7 {[%emt 0:01:32]} 11. Re1 {[%emt 0:06:41]} Bd7 {[%emt 0:03:03]} 12. Qd2 {[%emt 0:00:11]} Bd6 {[%emt 0:00:45]} 13. h3 {[%emt 0:07:55]} g5 {[%emt 0:12:54]} 14. Nxg5 {[%emt 0:02:11]} hxg5 {[%emt 0:01:45]} 15. Bxg5 {[%emt 0:00:03]} Nh5 {[%emt 0:06:24]} 16. Nxd5 {[%emt 0:00:38]} Qa5 {[%emt 0:04:58]} 17. Qxa5 {[%emt 0:04:00]} Nxa5 {[%emt 0:00:34]} 18. Nb6 {[%emt 0:08:03]} Rb8 {[%emt 0:04:29]} 19. d5 {[%emt 0:04:11]} Rg8 {[%emt 0:03:21]} 20. Bd2 {[%emt 0:01:11]} Nf4 {[%emt 0:02:38]} 21. Bxf4 {[%emt 0:02:19]} Bxf4 {[%emt 0:00:09]} 22. b4 {[%emt 0:00:11]} Bd2 {[%emt 0:02:02]} 23. Re2 {[%emt 0:03:42]} Bc3 {[%emt 0:01:13]} 24. Rd1 {[%emt 0:00:31]} Nc6 {[%emt 0:01:42]} 25. Nxd7 {[%emt 0:03:25]} Kxd7 {[%emt 0:00:08]} 26. dxc6+ {[%emt 0:00:48]} Kxc6 {[%emt 0:00:02]} 27. Be4+ {[%emt 0:00:27]} Kc7 {[%emt 0:02:39]} 28. Re3 {[%emt 0:02:45]} Bg7 {[%emt 0:00:31]} 29. Red3 {[%emt 0:00:26]} f5 {[%emt 0:02:13]} 30. Bf3 {[%emt 0:01:24]} e5 {[%emt 0:00:19]} 31. Rd7+ {[%emt 0:01:01]} Kc8 {[%emt 0:00:18]} 32. Rf7 {[%emt 0:01:35]} e4 {[%emt 0:01:02]} 33. Be2 {[%emt 0:00:28]} Bb2 {[%emt 0:01:31]} 34. Rdd7 {[%emt 0:00:49]} b5 {[%emt 0:01:13]} 35. Rc7+ {[%emt 0:00:22]} Kd8 {[%emt 0:00:03]} 36. Rfd7+ {[%emt 0:00:10]} Ke8 {[%emt 0:00:07]} 37. Bh5+ {[%emt 0:00:08]} 1-0

[Event "41st Jacques-Lemans-Open 2022"]
[Site "St. Veit/Glan"]
[Date "2022.07.10"]
[Round "2.7"]
[White "Schippel, Gert"]
[Black "Kruckenhauser, Arthur"]
[Result "0-1"]
[ECO "E06"]
[WhiteElo "2106"]
[BlackElo "2303"]
[Annotator "RC"]
[PlyCount "98"]
[EventDate "2022.07.09"]
[EventType "swiss"]
[EventCountry "AUT"]
[SourceTitle "playchess.com"]
[Source "ChessBase"]
[SourceQuality "1"]
[TimeControl "40/5400+30:1800+30"]

1. Nf3 {[%emt 0:00:03]} Nf6 {[%emt 0:01:15]} 2. c4 {[%emt 0:00:06]} e6 {[%emt 0:01:07]} 3. g3 {[%emt 0:00:26]} d5 {[%emt 0:00:07]} 4. d4 {[%emt 0:00:39]} Be7 {[%emt 0:01:46]} 5. Bg2 {[%emt 0:00:08]} O-O {[%emt 0:00:04]} 6. O-O {[%emt 0:00:09]} c6 {[%emt 0:00:17]} 7. Qc2 {[%emt 0:00:43]} b6 {[%emt 0:00:46]} 8. b3 {[%emt 0:00:44]} Nbd7 {[%emt 0:02:45]} 9. Rd1 {[%emt 0:02:14]} Re8 {[%emt 0:00:59]} 10. Nbd2 {[%emt 0:03:41]} Bb7 {[%emt 0:01:00]} 11. e4 {[%emt 0:00:47]} dxe4 {[%emt 0:02:59]} 12. Nxe4 {[%emt 0:01:30]} Nxe4 {[%emt 0:03:41]} 13. Qxe4 {[%emt 0:02:46]} Qc8 {[%emt 0:00:52]} 14. Ne5 {[%emt 0:28:17]} Nxe5 {[%emt 0:00:21]} 15. dxe5 {[%emt 0:00:45]} Rb8 {[%emt 0:00:23]} 16. Bb2 {[%emt 0:05:12]} c5 {[%emt 0:01:15]} 17. Qe2 {[%emt 0:00:59]} Qc7 {[%emt 0:10:03]} 18. Rd3 {[%emt 0:02:11]} Rbd8 {[%emt 0:00:27]} 19. Rad1 {[%emt 0:00:11]} h6 {[%emt 0:01:31]} 20. Be4 {[%emt 0:01:29]} Rxd3 {[%emt 0:03:10]} 21. Rxd3 {[%emt 0:00:28]} Rd8 {[%emt 0:00:33]} 22. Kf1 {[%emt 0:06:50]} Bxe4 {[%emt 0:02:42]} 23. Qxe4 {[%emt 0:00:29]} Rxd3 {[%emt 0:00:04]} 24. Qxd3 {[%emt 0:00:04]} Qc6 {[%emt 0:00:24]} 25. Ke2 {[%emt 0:03:41]} Qh1 {[%emt 0:02:19]} 26. h4 {[%emt 0:05:02]} Bf8 {[%emt 0:03:27]} 27. a4 {[%emt 0:20:35]} g6 {[%emt 0:04:17]} 28. Bc3 {[%emt 0:02:16]} Qc1 {[%emt 0:06:27]} 29. Bd2 {[%emt 0:03:31]} Qb2 {[%emt 0:03:13]} 30. Qc3 {[%emt 0:01:52]} Qa2 {[%emt 0:00:05]} 31. f4 {[%emt 0:03:08]} Be7 {[%emt 0:04:12]} 32. Kf3 {[%emt 0:00:55]} Qb1 {[%emt 0:00:17]} 33. Kg2 {[%emt 0:01:43]} Qd1 {[%emt 0:01:33]} 34. Be3 {[%emt 0:01:17]} g5 {[%emt 0:00:58]} 35. hxg5 {[%emt 0:00:13]} hxg5 {[%emt 0:00:05]} 36. fxg5 {[%emt 0:00:36]} Qe2+ {[%emt 0:00:26]} 37. Kg1 {[%emt 0:00:41]} Qf3 {[%emt 0:04:16]} 38. Bd2 {[%emt 0:00:33]} Qf5 {[%emt 0:03:30]} 39. Qe3 {[%emt 0:00:36]} Kg7 {[%emt 0:00:04]} 40. Kg2 {[%emt 0:02:27]} Kg6 {[%emt 0:02:37]} 41. Qf4 {[%emt 0:06:14]} Bxg5 {[%emt 0:01:40]} 42. Qxf5+ {[%emt 0:01:32]} Kxf5 {[%emt 0:00:20]} 43. Bc3 {[%emt 0:00:13]} Ke4 {[%emt 0:00:06]} 44. a5 {[%emt 0:10:35]} Kd3 {[%emt 0:03:30]} 45. axb6 {[%emt 0:00:14]} axb6 {[%emt 0:00:04]} 46. Be1 {[%emt 0:00:18]} Bd2 {[%emt 0:01:46]} 47. Bf2 {[%emt 0:01:07]} Be3 {[%emt 0:01:13]} 48. Be1 {[%emt 0:00:26]} Ke2 {[%emt 0:00:06]} 49. Bc3 {[%emt 0:00:28]} Bd4 {[%emt 0:00:05]} 0-1